fUST/lending_fUST_20260509
["ID","MTS","AMOUNT","RATE_DAILY","PERIOD"]
[421872392,1778257841000,-500.0,0.0001178,2]
[421872396,1778257841000,-500.0,0.0001178,2]
[421872395,1778257841000,-500.0,0.0001178,2]
[421872394,1778257841000,-434.32988005,0.0001178,2]
[421872397,1778257841000,-500.0,0.0001178,2]
[421872402,1778257841000,-500.0,0.0001178,2]
[421872403,1778257841000,-500.0,0.0001178,2]
[421872405,1778257841000,-500.0,0.0001178,2]
[421872404,1778257841000,-390.88909347,0.0001178,2]
[421872407,1778257841000,-500.0,0.0001178,2]
[421872432,1778257841000,-500.0,0.0001178,2]
[421872425,1778257841000,-799.81,0.0001178,2]
[421872436,1778257841000,-620.56,0.0001178,2]
[421872467,1778257841000,-500.0,0.00012054,2]
[421872466,1778257841000,-500.0,0.00012054,2]
[421872468,1778257841000,-500.0,0.00012054,2]
[421872459,1778257841000,-500.0,0.00012054,2]
[421872458,1778257841000,-500.0,0.00012054,2]
[421872464,1778257841000,-500.0,0.00012054,2]
[421872470,1778257841000,-500.0,0.00012054,2]
[421872481,1778257841000,-565.24,0.00012054,2]
[421872480,1778257841000,-500.0,0.00012054,2]
[421872469,1778257841000,-500.0,0.00012054,2]
[421872471,1778257841000,-500.0,0.00012054,2]
[421872472,1778257841000,-500.0,0.00012054,2]
[421872474,1778257841000,-500.0,0.00012054,2]
[421872478,1778257841000,-500.0,0.00012054,2]
[421872477,1778257841000,-842.7674,0.00012054,2]
[421872475,1778257841000,-500.0,0.00012054,2]
[421872476,1778257841000,-525.29,0.00012054,2]
[421872479,1778257841000,-500.0,0.00012054,2]
[421872482,1778257841000,-500.0,0.00012054,2]
[421872485,1778257841000,-500.0,0.00012054,2]
[421872484,1778257841000,-500.0,0.00012054,2]
[421872486,1778257841000,-1281.13,0.00012054,2]
[421872435,1778257841000,-500.0,0.0001178,2]
[421872462,1778257841000,-500.0,0.00012054,2]
[421872465,1778257841000,-500.0,0.00012054,2]
[421872473,1778257841000,-500.0,0.00012054,2]
[421872463,1778257841000,-500.0,0.00012054,2]
[421872461,1778257841000,-500.0,0.00012054,2]
[421872439,1778257841000,-1610.63,0.0001178,2]
[421872437,1778257841000,-500.0,0.0001178,2]
[421872440,1778257841000,-500.0,0.0001178,2]
[421872438,1778257841000,-790.35,0.0001178,2]
[421872483,1778257841000,-500.0,0.00012054,2]
[421872441,1778257841000,-500.0,0.0001178,2]
[421872445,1778257841000,-500.0,0.0001178,2]
[421872442,1778257841000,-500.0,0.0001178,2]
[421872444,1778257841000,-1487.62,0.0001178,2]
[421872447,1778257841000,-503.3,0.0001178,2]
[421872446,1778257841000,-1425.53,0.0001178,2]
[421872443,1778257841000,-500.0,0.0001178,2]
[421872448,1778257841000,-500.0,0.0001178,2]
[421872449,1778257841000,-1359.66,0.0001178,2]
[421872450,1778257841000,-922.51,0.0001178,2]
[421872455,1778257841000,-200.0,0.00011784,2]
[421872456,1778257841000,-420.0,0.00011932,2]
[421872452,1778257841000,-500.0,0.0001178,2]
[421872451,1778257841000,-500.0,0.0001178,2]
[421872454,1778257841000,-500.0,0.0001178,2]
[421872453,1778257841000,-500.0,0.0001178,2]
[421872457,1778257841000,-500.0,0.00012054,2]
[421872460,1778257841000,-500.0,0.00012054,2]
[421872526,1778257842000,-500.0,0.00012328,2]
[421872528,1778257842000,-500.0,0.00012328,2]
[421872525,1778257842000,-500.0,0.00012328,2]
[421872529,1778257842000,-500.0,0.00012328,2]
[421872524,1778257842000,-500.0,0.00012328,2]
[421872520,1778257842000,-500.0,0.00012054,2]
[421872523,1778257842000,-500.0,0.00012328,2]
[421872519,1778257842000,-500.0,0.00012054,2]
[421872522,1778257842000,-200.0,0.0001221,2]
[421872518,1778257842000,-587.70212169,0.00012054,2]
[421872530,1778257842000,-500.0,0.00012328,2]
[421872521,1778257842000,-500.0,0.00012054,2]
[421872527,1778257842000,-500.0,0.00012328,2]
[421872539,1778257842000,-500.0,0.00012328,2]
[421872542,1778257842000,-525.29,0.00012328,2]
[421872531,1778257842000,-500.0,0.00012328,2]
[421872533,1778257842000,-500.0,0.00012328,2]
[421872534,1778257842000,-500.0,0.00012328,2]
[421872536,1778257842000,-192.7,0.00012328,2]
[421872535,1778257842000,-500.0,0.00012328,2]
[421872537,1778257842000,-500.0,0.00012328,2]
[421872538,1778257842000,-500.0,0.00012328,2]
[421872540,1778257842000,-500.0,0.00012328,2]
[421872541,1778257842000,-500.0,0.00012328,2]
[421872545,1778257842000,-500.0,0.00012328,2]
[421872514,1778257842000,-503.3,0.00012054,2]
[421872532,1778257842000,-500.0,0.00012328,2]
[421872511,1778257842000,-1487.62,0.00012054,2]
[421872493,1778257842000,-7651.3,0.00012054,2]
[421872513,1778257842000,-1425.53,0.00012054,2]
[421872488,1778257842000,-1367.21,0.00012054,2]
[421872489,1778257842000,-500.0,0.00012054,2]
[421872487,1778257842000,-1058.63,0.00012054,2]
[421872544,1778257842000,-500.0,0.00012328,2]
[421872490,1778257842000,-500.0,0.00012054,2]
[421872492,1778257842000,-799.81,0.00012054,2]
[421872491,1778257842000,-500.0,0.00012054,2]
[421872494,1778257842000,-500.0,0.00012054,2]
[421872497,1778257842000,-500.0,0.00012054,2]
[421872498,1778257842000,-500.0,0.00012054,2]
[421872500,1778257842000,-518.01,0.00012054,2]
[421872501,1778257842000,-759.64,0.00012054,2]
[421872502,1778257842000,-500.0,0.00012054,2]
[421872505,1778257842000,-790.35,0.00012054,2]
[421872499,1778257842000,-500.0,0.00012054,2]
[421872504,1778257842000,-500.0,0.00012054,2]
[421872495,1778257842000,-500.0,0.00012054,2]
[421872503,1778257842000,-620.56,0.00012054,2]
[421872496,1778257842000,-1468.56,0.00012054,2]
[421872507,1778257842000,-500.0,0.00012054,2]
[421872506,1778257842000,-1610.63,0.00012054,2]
[421872508,1778257842000,-500.0,0.00012054,2]
[421872516,1778257842000,-1359.66,0.00012054,2]
[421872510,1778257842000,-500.0,0.00012054,2]
[421872517,1778257842000,-922.51,0.00012054,2]
[421872509,1778257842000,-164.061708,0.00012054,2]
[421872512,1778257842000,-500.0,0.00012054,2]
[421872515,1778257842000,-500.0,0.00012054,2]
[421872546,1778257842000,-500.0,0.00012328,2]
[421872543,1778257842000,-842.7674,0.00012328,2]
[421872550,1778257842000,-500.0,0.00012328,2]
[421872589,1778257842000,-500.0,0.00012602,2]
[421872581,1778257842000,-1359.66,0.00012328,2]
[421872579,1778257842000,-503.3,0.00012328,2]
[421872590,1778257842000,-500.0,0.00012602,2]
[421872583,1778257842000,-500.0,0.00012328,2]
[421872588,1778257842000,-500.0,0.00012602,2]
[421872582,1778257842000,-922.51,0.00012328,2]
[421872586,1778257842000,-720.0,0.00012601,2]
[421872585,1778257842000,-500.0,0.00012328,2]
[421872587,1778257842000,-500.0,0.00012602,2]
[421872584,1778257842000,-500.0,0.00012328,2]
[421872591,1778257842000,-500.0,0.00012602,2]
[421872594,1778257842000,-500.0,0.00012602,2]
[421872592,1778257842000,-500.0,0.00012602,2]
[421872597,1778257842000,-500.0,0.00012602,2]
[421872599,1778257842000,-500.0,0.00012602,2]
[421872593,1778257842000,-500.0,0.00012602,2]
[421872595,1778257842000,-500.0,0.00012602,2]
[421872600,1778257842000,-500.0,0.00012602,2]
[421872601,1778257842000,-500.0,0.00012602,2]
[421872596,1778257842000,-500.0,0.00012602,2]
[421872598,1778257842000,-500.0,0.00012602,2]
[421872602,1778257842000,-500.0,0.00012602,2]
[421872603,1778257842000,-500.0,0.00012602,2]
[421872605,1778257842000,-525.29,0.00012602,2]
[421872549,1778257842000,-500.0,0.00012328,2]
[421872606,1778257842000,-842.7674,0.00012602,2]
[421872580,1778257842000,-500.0,0.00012328,2]
[421872574,1778257842000,-500.0,0.00012328,2]
[421872604,1778257842000,-500.0,0.00012602,2]
[421872577,1778257842000,-500.0,0.00012328,2]
[421872572,1778257842000,-1610.63,0.00012328,2]
[421872547,1778257842000,-565.24,0.00012328,2]
[421872551,1778257842000,-500.0,0.00012328,2]
[421872552,1778257842000,-1281.13,0.00012328,2]
[421872553,1778257842000,-1058.63,0.00012328,2]
[421872557,1778257842000,-500.0,0.00012328,2]
[421872565,1778257842000,-500.0,0.00012328,2]
[421872555,1778257842000,-500.0,0.00012328,2]
[421872558,1778257842000,-799.81,0.00012328,2]
[421872554,1778257842000,-1367.21,0.00012328,2]
[421872566,1778257842000,-518.01,0.00012328,2]
[421872559,1778257842000,-7651.3,0.00012328,2]
[421872556,1778257842000,-500.0,0.00012328,2]
[421872548,1778257842000,-500.0,0.00012328,2]
[421872562,1778257842000,-1468.56,0.00012328,2]
[421872571,1778257842000,-790.35,0.00012328,2]
[421872569,1778257842000,-620.56,0.00012328,2]
[421872573,1778257842000,-500.0,0.00012328,2]
[421872576,1778257842000,-1487.62,0.00012328,2]
[421872560,1778257842000,-500.0,0.00012328,2]
[421872568,1778257842000,-500.0,0.00012328,2]
[421872570,1778257842000,-500.0,0.00012328,2]
[421872575,1778257842000,-500.0,0.00012328,2]
[421872567,1778257842000,-759.64,0.00012328,2]
[421872563,1778257842000,-500.0,0.00012328,2]
[421872564,1778257842000,-225.98618451,0.00012328,2]
[421872561,1778257842000,-500.0,0.00012328,2]
[421872578,1778257842000,-1425.53,0.00012328,2]
[421872660,1778257843000,-161.58879827,0.00012686,2]
[421872658,1778257843000,-500.0,0.00012602,2]
[421872659,1778257843000,-200.0,0.00012636,2]
[421872655,1778257843000,-922.51,0.00012602,2]
[421872647,1778257843000,-500.0,0.00012602,2]
[421872653,1778257843000,-500.0,0.00012602,2]
[421872652,1778257843000,-503.3,0.00012602,2]
[421872651,1778257843000,-1425.53,0.00012602,2]
[421872650,1778257843000,-500.0,0.00012602,2]
[421872640,1778257843000,-500.0,0.00012602,2]
[421872654,1778257843000,-1359.66,0.00012602,2]
[421872656,1778257843000,-500.0,0.00012602,2]
[421872674,1778257843000,-500.0,0.00012876,2]
[421872657,1778257843000,-469.36882409,0.00012602,2]
[421872663,1778257843000,-160.0,0.00012686,2]
[421872676,1778257843000,-500.0,0.00012876,2]
[421872662,1778257843000,-160.0,0.00012686,2]
[421872665,1778257843000,-500.0,0.00012876,2]
[421872675,1778257843000,-500.0,0.00012876,2]
[421872673,1778257843000,-500.0,0.00012876,2]
[421872664,1778257843000,-250.68062882,0.00012837,2]
[421872669,1778257843000,-582.60555674,0.00012876,2]
[421872667,1778257843000,-500.0,0.00012876,2]
[421872671,1778257843000,-500.0,0.00012876,2]
[421872646,1778257843000,-500.0,0.00012602,2]
[421872672,1778257843000,-341.02667975,0.00012876,2]
[421872661,1778257843000,-160.0,0.00012686,2]
[421872648,1778257843000,-500.0,0.00012602,2]
[421872628,1778257843000,-7651.3,0.00012602,2]
[421872649,1778257843000,-1487.62,0.00012602,2]
[421872670,1778257843000,-443.90391016,0.00012876,2]
[421872608,1778257843000,-500.0,0.00012602,2]
[421872609,1778257843000,-500.0,0.00012602,2]
[421872607,1778257843000,-432.86888658,0.00012602,2]
[421872611,1778257843000,-500.0,0.00012602,2]
[421872610,1778257843000,-565.24,0.00012602,2]
[421872614,1778257843000,-500.0,0.00012602,2]
[421872613,1778257843000,-500.0,0.00012602,2]
[421872612,1778257843000,-500.0,0.00012602,2]
[421872615,1778257843000,-1281.13,0.00012602,2]
[421872616,1778257843000,-1058.63,0.00012602,2]
[421872618,1778257843000,-1367.21,0.00012602,2]
[421872644,1778257843000,-790.35,0.00012602,2]
[421872635,1778257843000,-500.0,0.00012602,2]
[421872626,1778257843000,-799.81,0.00012602,2]
[421872633,1778257843000,-1468.56,0.00012602,2]
[421872622,1778257843000,-500.0,0.00012602,2]
[421872624,1778257843000,-500.0,0.00012602,2]
[421872630,1778257843000,-500.0,0.00012602,2]
[421872631,1778257843000,-500.0,0.00012602,2]
[421872637,1778257843000,-500.0,0.00012602,2]
[421872638,1778257843000,-518.01,0.00012602,2]
[421872639,1778257843000,-759.64,0.00012602,2]
[421872643,1778257843000,-500.0,0.00012602,2]
[421872645,1778257843000,-1610.63,0.00012602,2]
[421872642,1778257843000,-620.56,0.00012602,2]
[421872620,1778257843000,-500.0,0.00012602,2]
[421872677,1778257843000,-500.0,0.00012876,2]
[421872685,1778257843000,-525.29,0.00012876,2]
[421872679,1778257843000,-500.0,0.00012876,2]
[421872712,1778257843000,-620.56,0.00012876,2]
[421872716,1778257843000,-500.0,0.00012876,2]
[421872715,1778257843000,-1610.63,0.00012876,2]
[421872714,1778257843000,-790.35,0.00012876,2]
[421872713,1778257843000,-500.0,0.00012876,2]
[421872717,1778257843000,-500.0,0.00012876,2]
[421872719,1778257843000,-1487.62,0.00012876,2]
[421872721,1778257843000,-1425.53,0.00012876,2]
[421872718,1778257843000,-500.0,0.00012876,2]
[421872720,1778257843000,-500.0,0.00012876,2]
[421872722,1778257843000,-503.3,0.00012876,2]
[421872724,1778257843000,-1359.66,0.00012876,2]
[421872704,1778257843000,-500.0,0.00012876,2]
[421872723,1778257843000,-500.0,0.00012876,2]
[421872725,1778257843000,-922.51,0.00012876,2]
[421872733,1778257843000,-500.0,0.0001315,2]
[421872731,1778257843000,-236.19090681,0.0001315,2]
[421872730,1778257843000,-500.0,0.0001315,2]
[421872734,1778257843000,-500.0,0.0001315,2]
[421872727,1778257843000,-500.0,0.00012876,2]
[421872728,1778257843000,-200.0,0.00013061,2]
[421872735,1778257843000,-500.0,0.0001315,2]
[421872732,1778257843000,-500.0,0.0001315,2]
[421872736,1778257843000,-500.0,0.0001315,2]
[421872738,1778257843000,-500.0,0.0001315,2]
[421872680,1778257843000,-500.0,0.00012876,2]
[421872726,1778257843000,-500.0,0.00012876,2]
[421872711,1778257843000,-500.0,0.00012876,2]
[421872729,1778257843000,-587.0,0.00013114,2]
[421872705,1778257843000,-500.0,0.00012876,2]
[421872708,1778257843000,-500.0,0.00012876,2]
[421872678,1778257843000,-500.0,0.00012876,2]
[421872682,1778257843000,-500.0,0.00012876,2]
[421872684,1778257843000,-500.0,0.00012876,2]
[421872681,1778257843000,-500.0,0.00012876,2]
[421872737,1778257843000,-500.0,0.0001315,2]
[421872686,1778257843000,-842.7674,0.00012876,2]
[421872688,1778257843000,-500.0,0.00012876,2]
[421872689,1778257843000,-565.24,0.00012876,2]
[421872690,1778257843000,-500.0,0.00012876,2]
[421872687,1778257843000,-363.59009006,0.00012876,2]
[421872691,1778257843000,-500.0,0.00012876,2]
[421872692,1778257843000,-500.0,0.00012876,2]
[421872683,1778257843000,-500.0,0.00012876,2]
[421872697,1778257843000,-500.0,0.00012876,2]
[421872693,1778257843000,-500.0,0.00012876,2]
[421872707,1778257843000,-500.0,0.00012876,2]
[421872706,1778257843000,-1468.56,0.00012876,2]
[421872710,1778257843000,-759.64,0.00012876,2]
[421872699,1778257843000,-500.0,0.00012876,2]
[421872703,1778257843000,-7651.3,0.00012876,2]
[421872702,1778257843000,-799.81,0.00012876,2]
[421872694,1778257843000,-1281.13,0.00012876,2]
[421872695,1778257843000,-1058.63,0.00012876,2]
[421872696,1778257843000,-1367.21,0.00012876,2]
[421872701,1778257843000,-500.0,0.00012876,2]
[421872709,1778257843000,-518.01,0.00012876,2]
[421872767,1778257844000,-1468.56,0.0001315,2]
[421872778,1778257844000,-500.0,0.0001315,2]
[421872775,1778257844000,-790.35,0.0001315,2]
[421872776,1778257844000,-1610.63,0.0001315,2]
[421872774,1778257844000,-500.0,0.0001315,2]
[421872769,1778257844000,-500.0,0.0001315,2]
[421872772,1778257844000,-500.0,0.0001315,2]
[421872773,1778257844000,-620.56,0.0001315,2]
[421872771,1778257844000,-759.64,0.0001315,2]
[421872770,1778257844000,-518.01,0.0001315,2]
[421872779,1778257844000,-500.0,0.0001315,2]
[421872788,1778257844000,-500.0,0.0001315,2]
[421872782,1778257844000,-1425.53,0.0001315,2]
[421872787,1778257844000,-500.0,0.0001315,2]
[421872784,1778257844000,-500.0,0.0001315,2]
[421872783,1778257844000,-503.3,0.0001315,2]
[421872780,1778257844000,-1487.62,0.0001315,2]
[421872781,1778257844000,-500.0,0.0001315,2]
[421872786,1778257844000,-922.51,0.0001315,2]
[421872765,1778257844000,-500.0,0.0001315,2]
[421872777,1778257844000,-500.0,0.0001315,2]
[421872768,1778257844000,-500.0,0.0001315,2]
[421872748,1778257844000,-565.24,0.0001315,2]
[421872763,1778257844000,-799.81,0.0001315,2]
[421872790,1778257844000,-500.0,0.00013424,2]
[421872742,1778257844000,-500.0,0.0001315,2]
[421872743,1778257844000,-500.0,0.0001315,2]
[421872741,1778257844000,-429.63584771,0.0001315,2]
[421872739,1778257844000,-500.0,0.0001315,2]
[421872740,1778257844000,-636.49890462,0.0001315,2]
[421872744,1778257844000,-500.0,0.0001315,2]
[421872745,1778257844000,-525.29,0.0001315,2]
[421872747,1778257844000,-500.0,0.0001315,2]
[421872746,1778257844000,-842.7674,0.0001315,2]
[421872749,1778257844000,-500.0,0.0001315,2]
[421872751,1778257844000,-500.0,0.0001315,2]
[421872750,1778257844000,-500.0,0.0001315,2]
[421872764,1778257844000,-7651.3,0.0001315,2]
[421872758,1778257844000,-500.0,0.0001315,2]
[421872762,1778257844000,-500.0,0.0001315,2]
[421872761,1778257844000,-500.0,0.0001315,2]
[421872752,1778257844000,-500.0,0.0001315,2]
[421872753,1778257844000,-1281.13,0.0001315,2]
[421872755,1778257844000,-1058.63,0.0001315,2]
[421872757,1778257844000,-1367.21,0.0001315,2]
[421872766,1778257844000,-500.0,0.0001315,2]
[421872789,1778257844000,-327.95,0.00013424,2]
[421872785,1778257844000,-1359.66,0.0001315,2]
[421872792,1778257844000,-452.79977352,0.00013424,2]
[421872818,1778257844000,-500.0,0.00013424,2]
[421872819,1778257844000,-1468.56,0.00013424,2]
[421872821,1778257844000,-500.0,0.00013424,2]
[421872817,1778257844000,-500.0,0.00013424,2]
[421872824,1778257844000,-194.22,0.00013424,2]
[421872820,1778257844000,-500.0,0.00013424,2]
[421872822,1778257844000,-518.01,0.00013424,2]
[421872823,1778257844000,-759.64,0.00013424,2]
[421872826,1778257844000,-500.0,0.00013424,2]
[421872828,1778257844000,-1610.63,0.00013424,2]
[421872831,1778257844000,-500.0,0.00013424,2]
[421872827,1778257844000,-790.35,0.00013424,2]
[421872836,1778257844000,-500.0,0.00013424,2]
[421872832,1778257844000,-1487.62,0.00013424,2]
[421872834,1778257844000,-1425.53,0.00013424,2]
[421872830,1778257844000,-500.0,0.00013424,2]
[421872833,1778257844000,-500.0,0.00013424,2]
[421872835,1778257844000,-503.3,0.00013424,2]
[421872837,1778257844000,-1359.66,0.00013424,2]
[421872838,1778257844000,-922.51,0.00013424,2]
[421872791,1778257844000,-500.0,0.00013424,2]
[421872816,1778257844000,-7651.3,0.00013424,2]
[421872825,1778257844000,-620.56,0.00013424,2]
[421872829,1778257844000,-500.0,0.00013424,2]
[421872815,1778257844000,-799.81,0.00013424,2]
[421872795,1778257844000,-500.0,0.00013424,2]
[421872814,1778257844000,-458.33408247,0.00013424,2]
[421872796,1778257844000,-190.82724196,0.00013424,2]
[421872793,1778257844000,-500.0,0.00013424,2]
[421872794,1778257844000,-500.0,0.00013424,2]
[421872797,1778257844000,-500.0,0.00013424,2]
[421872800,1778257844000,-500.0,0.00013424,2]
[421872801,1778257844000,-525.29,0.00013424,2]
[421872799,1778257844000,-500.27381144,0.00013424,2]
[421872802,1778257844000,-842.7674,0.00013424,2]
[421872798,1778257844000,-500.0,0.00013424,2]
[421872804,1778257844000,-565.24,0.00013424,2]
[421872803,1778257844000,-500.0,0.00013424,2]
[421872811,1778257844000,-1367.21,0.00013424,2]
[421872806,1778257844000,-500.0,0.00013424,2]
[421872813,1778257844000,-500.0,0.00013424,2]
[421872809,1778257844000,-1281.13,0.00013424,2]
[421872810,1778257844000,-1058.63,0.00013424,2]
[421872812,1778257844000,-500.0,0.00013424,2]
[421872808,1778257844000,-500.0,0.00013424,2]
[421872805,1778257844000,-500.0,0.00013424,2]
[421872807,1778257844000,-500.0,0.00013424,2]
[421872883,1778257845000,-151.0,0.00013698,2]
[421872881,1778257845000,-151.0,0.00013698,2]
[421872882,1778257845000,-500.0,0.00013698,2]
[421872886,1778257845000,-500.0,0.00013698,2]
[421872878,1778257845000,-511.14597701,0.00013698,2]
[421872868,1778257845000,-2000.0,0.0001368,2]
[421872872,1778257845000,-2000.0,0.0001368,2]
[421872871,1778257845000,-2000.0,0.0001368,2]
[421872865,1778257845000,-2000.0,0.0001368,2]
[421872884,1778257845000,-500.0,0.00013698,2]
[421872867,1778257845000,-2000.0,0.0001368,2]
[421872876,1778257845000,-500.0,0.00013698,2]
[421872887,1778257845000,-500.0,0.00013698,2]
[421872893,1778257845000,-501.45268398,0.00013698,2]
[421872880,1778257845000,-151.0,0.00013698,2]
[421872879,1778257845000,-633.21616579,0.00013698,2]
[421872885,1778257845000,-500.0,0.00013698,2]
[421872889,1778257845000,-500.0,0.00013698,2]
[421872899,1778257845000,-500.0,0.00013698,2]
[421872890,1778257845000,-500.0,0.00013698,2]
[421872892,1778257845000,-500.0,0.00013698,2]
[421872891,1778257845000,-572.89251842,0.00013698,2]
[421872888,1778257845000,-500.0,0.00013698,2]
[421872894,1778257845000,-500.0,0.00013698,2]
[421872898,1778257845000,-500.0,0.00013698,2]
[421872895,1778257845000,-500.0,0.00013698,2]
[421872873,1778257845000,-2057.0,0.0001368,2]
[421872877,1778257845000,-500.0,0.00013698,2]
[421872870,1778257845000,-2000.0,0.0001368,2]
[421872843,1778257845000,-151.0,0.000135,2]
[421872875,1778257845000,-500.0,0.00013698,2]
[421872896,1778257845000,-500.0,0.00013698,2]
[421872847,1778257845000,-1379.3671246,0.00013504,2]
[421872839,1778257845000,-500.0,0.00013424,2]
[421872848,1778257845000,-2464.66630445,0.00013542,2]
[421872849,1778257845000,-9999.99,0.00013671,2]
[421872841,1778257845000,-200.0,0.00013487,2]
[421872840,1778257845000,-500.0,0.00013424,2]
[421872846,1778257845000,-3393.2128194,0.00013504,2]
[421872842,1778257845000,-151.0,0.000135,2]
[421872845,1778257845000,-8788.6519947,0.00013504,2]
[421872844,1778257845000,-1755.6045704,0.00013504,2]
[421872850,1778257845000,-9999.99,0.00013671,2]
[421872851,1778257845000,-9999.99,0.00013671,2]
[421872869,1778257845000,-2000.0,0.0001368,2]
[421872852,1778257845000,-2000.0,0.0001368,2]
[421872854,1778257845000,-2000.0,0.0001368,2]
[421872855,1778257845000,-2000.0,0.0001368,2]
[421872856,1778257845000,-2000.0,0.0001368,2]
[421872862,1778257845000,-2000.0,0.0001368,2]
[421872859,1778257845000,-2000.0,0.0001368,2]
[421872861,1778257845000,-2000.0,0.0001368,2]
[421872858,1778257845000,-2000.0,0.0001368,2]
[421872857,1778257845000,-2000.0,0.0001368,2]
[421872860,1778257845000,-2000.0,0.0001368,2]
[421872864,1778257845000,-2000.0,0.0001368,2]
[421872874,1778257845000,-443.5801733,0.0001369,7]
[421872863,1778257845000,-2000.0,0.0001368,2]
[421872866,1778257845000,-2000.0,0.0001368,2]
[421872853,1778257845000,-2000.0,0.0001368,2]
[421872897,1778257845000,-500.0,0.00013698,2]
[421872946,1778257845000,-500.0,0.00013698,2]
[421872901,1778257845000,-500.0,0.00013698,2]
[421872935,1778257845000,-500.0,0.00013698,2]
[421872933,1778257845000,-500.0,0.00013698,2]
[421872934,1778257845000,-500.0,0.00013698,2]
[421872937,1778257845000,-500.0,0.00013698,2]
[421872939,1778257845000,-503.14490422,0.00013698,2]
[421872948,1778257845000,-299.39817267,0.00013698,2]
[421872941,1778257845000,-525.29,0.00013698,2]
[421872944,1778257845000,-269.5663012,0.00013698,2]
[421872938,1778257845000,-500.0,0.00013698,2]
[421872945,1778257845000,-565.24,0.00013698,2]
[421872943,1778257845000,-500.0,0.00013698,2]
[421872942,1778257845000,-842.7674,0.00013698,2]
[421872940,1778257845000,-500.0,0.00013698,2]
[421872930,1778257845000,-500.0,0.00013698,2]
[421872949,1778257845000,-500.0,0.00013698,2]
[421872958,1778257845000,-799.81,0.00013698,2]
[421872950,1778257845000,-500.0,0.00013698,2]
[421872951,1778257845000,-1281.13,0.00013698,2]
[421872952,1778257845000,-1058.63,0.00013698,2]
[421872955,1778257845000,-1367.21,0.00013698,2]
[421872953,1778257845000,-500.0,0.00013698,2]
[421872961,1778257845000,-500.0,0.00013698,2]
[421872962,1778257845000,-1468.56,0.00013698,2]
[421872957,1778257845000,-422.32513249,0.00013698,2]
[421872954,1778257845000,-392.00352098,0.00013698,2]
[421872959,1778257845000,-7651.3,0.00013698,2]
[421872960,1778257845000,-500.0,0.00013698,2]
[421872903,1778257845000,-500.0,0.00013698,2]
[421872947,1778257845000,-500.0,0.00013698,2]
[421872932,1778257845000,-500.0,0.00013698,2]
[421872956,1778257845000,-500.0,0.00013698,2]
[421872928,1778257845000,-516.89,0.00013698,2]
[421872931,1778257845000,-500.0,0.00013698,2]
[421872900,1778257845000,-500.0,0.00013698,2]
[421872908,1778257845000,-500.0,0.00013698,2]
[421872912,1778257845000,-516.89,0.00013698,2]
[421872907,1778257845000,-500.0,0.00013698,2]
[421872902,1778257845000,-500.0,0.00013698,2]
[421872911,1778257845000,-500.0,0.00013698,2]
[421872909,1778257845000,-500.0,0.00013698,2]